fUST/lending_fUST_20240725
["ID","MTS","AMOUNT","RATE_DAILY","PERIOD"]
[333177838,1721920260573,-1263.54,0.0001452,2]
[333177839,1721920260582,-918.52,0.0001452,2]
[333177840,1721920260592,-500.0,0.0001452,2]
[333177841,1721920260601,-1343.62,0.0001452,2]
[333177842,1721920260611,-436.61,0.0001452,2]
[333177843,1721920260622,-500.0,0.0001452,2]
[333177844,1721920260634,-617.49268695,0.0001452,2]
[333177845,1721920260644,-500.0,0.0001452,2]
[333177846,1721920260654,-500.0,0.0001452,2]
[333177847,1721920260664,-1269.99,0.0001452,2]
[333177848,1721920260673,-500.0,0.0001452,2]
[333177849,1721920260683,-1213.33,0.0001452,2]
[333177850,1721920260694,-500.0,0.0001452,2]
[333177851,1721920260706,-500.0,0.0001452,2]
[333177852,1721920260718,-500.0,0.0001452,2]
[333177853,1721920260730,-821.5,0.0001452,2]
[333177854,1721920260740,-520.64673539,0.0001452,2]
[333177855,1721920260750,-586.13,0.0001452,2]
[333177856,1721920260760,-1315.07,0.0001452,2]
[333177857,1721920260770,-500.0,0.0001452,2]
[333177858,1721920260780,-1011.15,0.0001452,2]
[333177859,1721920260789,-500.0,0.0001452,2]
[333177860,1721920260799,-695.28,0.0001452,2]
[333177861,1721920260809,-1048.38,0.0001452,2]
[333177862,1721920260819,-500.0,0.0001452,2]
[333177863,1721920260828,-2684.3,0.0001452,2]
[333177864,1721920260837,-500.0,0.0001452,2]
[333177865,1721920260847,-500.0,0.0001452,2]
[333177866,1721920260857,-591.85,0.0001452,2]
[333177867,1721920260867,-929.69,0.0001452,2]
[333177868,1721920260877,-2334.27,0.0001452,2]
[333177869,1721920260887,-2060.58,0.0001452,2]
[333177870,1721920260897,-676.74,0.0001452,2]
[333177871,1721920260907,-1152.85,0.0001452,2]
[333177872,1721920260917,-2355.86,0.0001452,2]
[333177873,1721920260927,-1105.36,0.0001452,2]
[333177874,1721920260937,-500.0,0.0001452,2]
[333177875,1721920260947,-1812.44,0.0001452,2]
[333177876,1721920260957,-500.0,0.0001452,2]
[333177877,1721920260967,-504.19773066,0.0001452,2]
[333177878,1721920260980,-500.0,0.0001452,2]
[333177879,1721920260989,-3551.43,0.0001452,2]
[333177880,1721920260999,-500.0,0.0001452,2]
[333177881,1721920261009,-500.0,0.0001452,2]
[333177882,1721920261018,-527.38,0.0001452,2]
[333177883,1721920261029,-3292.49,0.0001452,2]
[333177884,1721920261038,-953.88,0.0001452,2]
[333177885,1721920261048,-500.0,0.0001452,2]
[333177886,1721920261058,-11909.14,0.0001452,2]
[333177887,1721920261068,-824.18,0.0001452,2]
[333177888,1721920261077,-500.0,0.0001452,2]
[333177889,1721920261087,-5038.56,0.0001452,2]
[333177890,1721920261096,-189.08406,0.0001452,2]
[333177891,1721920261106,-500.0,0.0001452,2]
[333177892,1721920261116,-500.0,0.0001452,2]
[333177893,1721920261125,-500.0,0.0001452,2]
[333177894,1721920261134,-2016.79,0.0001452,2]
[333177895,1721920261143,-500.0,0.0001452,2]
[333177896,1721920261153,-500.0,0.0001452,2]
[333177897,1721920261162,-2201.11,0.0001452,2]
[333177898,1721920261172,-1120.68,0.0001452,2]
[333177899,1721920261182,-884.95,0.0001452,2]
[333177900,1721920261192,-1931.27,0.0001452,2]
[333177901,1721920261202,-1928.47,0.0001452,2]
[333177902,1721920261211,-1131.0,0.0001452,2]
[333177903,1721920261221,-500.0,0.0001452,2]
[333177904,1721920261235,-500.0,0.0001452,2]
[333177905,1721920261244,-500.0,0.0001452,2]
[333177906,1721920261254,-500.0,0.0001452,2]
[333177907,1721920261263,-500.0,0.0001452,2]
[333177908,1721920261276,-500.0,0.0001452,2]
[333177909,1721920261285,-500.0,0.0001452,2]
[333177910,1721920261294,-500.0,0.0001452,2]
[333177911,1721920261304,-7992.54,0.0001452,2]
[333177912,1721920261313,-500.0,0.0001452,2]
[333177913,1721920261322,-500.0,0.0001452,2]
[333177914,1721920261331,-1551.57,0.0001452,2]
[333177915,1721920261340,-2096.48,0.0001452,2]
[333177916,1721920261349,-1244.75,0.0001452,2]
[333177917,1721920261357,-500.0,0.0001452,2]
[333177918,1721920261367,-500.0,0.0001452,2]
[333177919,1721920261377,-302.94005181,0.0001452,2]
[333177920,1721920261387,-1011.6,0.0001452,2]
[333177921,1721920261397,-500.0,0.0001452,2]
[333177922,1721920261408,-500.0,0.0001452,2]
[333177923,1721920261417,-657.54,0.0001452,2]
[333177924,1721920261427,-500.0,0.0001452,2]
[333177925,1721920261436,-500.0,0.0001452,2]
[333177926,1721920261446,-500.0,0.0001452,2]
[333177927,1721920261457,-500.0,0.0001452,2]
[333177928,1721920261466,-1578.49,0.0001452,2]
[333177929,1721920261484,-500.0,0.0001452,2]
[333177930,1721920261494,-5983.51,0.0001452,2]
[333177931,1721920261503,-1570.8,0.0001452,2]
[333177932,1721920261513,-1621.43,0.0001452,2]
[333177933,1721920261523,-500.0,0.0001452,2]
[333177934,1721920261533,-500.0,0.0001452,2]
[333177935,1721920261545,-1011.04,0.0001452,2]
[333177936,1721920261555,-576.95,0.0001452,2]
[333177937,1721920261564,-3743.12,0.0001452,2]
[333177938,1721920261576,-890.48,0.0001452,2]
[333177939,1721920261586,-500.0,0.0001452,2]
[333177940,1721920261596,-1832.5,0.0001452,2]
[333177941,1721920261605,-500.0,0.0001452,2]
[333177942,1721920261617,-1016.49,0.0001452,2]
[333177943,1721920261630,-500.0,0.0001452,2]
[333177944,1721920261643,-500.0,0.0001452,2]
[333177945,1721920261653,-500.0,0.0001452,2]
[333177946,1721920261663,-660.96,0.0001452,2]
[333177947,1721920261674,-1969.13,0.0001452,2]
[333177948,1721920261684,-500.0,0.0001452,2]
[333177949,1721920261694,-1118.21,0.0001452,2]
[333177950,1721920261706,-500.0,0.0001452,2]
[333177951,1721920261716,-539.59,0.0001452,2]
[333177952,1721920261729,-3270.58,0.0001452,2]
[333177953,1721920261739,-1456.73,0.0001452,2]
[333177954,1721920261749,-945.86,0.0001452,2]
[333177955,1721920261758,-500.0,0.0001452,2]
[333177956,1721920261768,-500.0,0.0001452,2]
[333177957,1721920261778,-554.65556923,0.0001452,2]
[333177958,1721920261788,-500.0,0.0001452,2]
[333177959,1721920261798,-500.0,0.0001452,2]
[333177960,1721920261809,-1121.94,0.0001452,2]
[333177961,1721920261819,-1485.77,0.0001452,2]
[333177962,1721920261829,-500.0,0.0001452,2]
[333177963,1721920261839,-500.0,0.0001452,2]
[333177964,1721920261849,-526.8949805,0.00014545,2]
[333177965,1721920261862,-910.83135728,0.00014545,2]
[333177966,1721920261873,-154.68290005,0.00014545,2]
[333177967,1721920261882,-1519.53846048,0.00014545,2]
[333177968,1721920261893,-301.880306,0.0001461,2]
[333177969,1721920261902,-334.138975,0.0001461,2]
[333177970,1721920261913,-620.00024465,0.00014652,2]
[333177971,1721920261923,-815.63383966,0.0001469,2]
[333177972,1721920261932,-154.71377951,0.0001469,2]
[333177973,1721920261942,-2290.49701586,0.0001469,2]
[333177974,1721920261952,-398.83393567,0.0001469,2]
[333177975,1721920261962,-1351.81477429,0.00014783,2]
[333177976,1721920261972,-553.91,0.00014794,2]
[333177977,1721920261985,-500.0,0.00014794,2]
[333177978,1721920261996,-500.0,0.00014794,2]
[333177979,1721920262005,-1093.76,0.00014794,2]
[333177980,1721920262015,-500.0,0.00014794,2]
[333177981,1721920262024,-673.76,0.00014794,2]
[333177982,1721920262034,-500.0,0.00014794,2]
[333177983,1721920262043,-500.0,0.00014794,2]
[333177984,1721920262053,-175.3812205,0.00014794,2]
[333177985,1721920262063,-661.23,0.00014794,2]
[333177986,1721920262073,-500.0,0.00014794,2]
[333177987,1721920262083,-500.0,0.00014794,2]
[333177988,1721920262093,-500.0,0.00014794,2]
[333177989,1721920262102,-500.0,0.00014794,2]
[333177990,1721920262112,-500.0,0.00014794,2]
[333177991,1721920262122,-510.82,0.00014794,2]
[333177992,1721920262132,-500.0,0.00014794,2]
[333177993,1721920262142,-500.0,0.00014794,2]
[333177994,1721920262154,-500.0,0.00014794,2]
[333177995,1721920262164,-500.0,0.00014794,2]
[333177996,1721920262174,-500.0,0.00014794,2]
[333177997,1721920262184,-500.0,0.00014794,2]
[333177998,1721920262194,-500.0,0.00014794,2]
[333177999,1721920262203,-500.0,0.00014794,2]
[333178000,1721920262213,-500.0,0.00014794,2]
[333178001,1721920262223,-500.0,0.00014794,2]
[333178002,1721920262235,-500.0,0.00014794,2]
[333178003,1721920262245,-500.0,0.00014794,2]
[333178004,1721920262254,-585.33335433,0.00014794,2]
[333178005,1721920262264,-500.0,0.00014794,2]
[333178006,1721920262276,-500.0,0.00014794,2]
[333178007,1721920262288,-500.0,0.00014794,2]
[333178008,1721920262299,-500.0,0.00014794,2]
[333178009,1721920262312,-500.0,0.00014794,2]
[333178010,1721920262452,-500.0,0.00014794,2]
[333178011,1721920262464,-500.0,0.00014794,2]
[333178012,1721920262478,-500.0,0.00014794,2]
[333178013,1721920262490,-500.0,0.00014794,2]
[333178014,1721920262504,-500.0,0.00014794,2]
[333178015,1721920262514,-516.87,0.00014794,2]
[333178016,1721920262525,-500.0,0.00014794,2]
[333178017,1721920262536,-500.0,0.00014794,2]
[333178018,1721920262547,-500.0,0.00014794,2]
[333178019,1721920262559,-626.08,0.00014794,2]
[333178020,1721920262569,-1266.26,0.00014794,2]
[333178021,1721920262580,-500.0,0.00014794,2]
[333178022,1721920262592,-500.0,0.00014794,2]
[333178023,1721920262603,-500.0,0.00014794,2]
[333178024,1721920262614,-500.0,0.00014794,2]
[333178025,1721920262628,-613.41,0.00014794,2]
[333178026,1721920262639,-500.0,0.00014794,2]
[333178027,1721920262650,-776.74,0.00014794,2]
[333178028,1721920262661,-500.0,0.00014794,2]
[333178029,1721920262674,-500.0,0.00014794,2]
[333178030,1721920262683,-1564.04,0.00014794,2]
[333178031,1721920262693,-500.0,0.00014794,2]
[333178032,1721920262705,-500.0,0.00014794,2]
[333178033,1721920262715,-500.0,0.00014794,2]
[333178034,1721920262725,-883.04,0.00014794,2]
[333178035,1721920262736,-500.0,0.00014794,2]
[333178036,1721920262747,-500.0,0.00014794,2]
[333178037,1721920262758,-500.0,0.00014794,2]
[333178038,1721920262769,-1537.87,0.00014794,2]
[333178039,1721920262780,-500.0,0.00014794,2]
[333178040,1721920262791,-603.41,0.00014794,2]
[333178041,1721920262801,-460.24857475,0.00014794,2]
[333178042,1721920262811,-500.0,0.00014794,2]
[333178043,1721920262822,-500.0,0.00014794,2]
[333178044,1721920262831,-500.0,0.00014794,2]
[333178045,1721920262842,-500.0,0.00014794,2]
[333178046,1721920262852,-500.0,0.00014794,2]
[333178047,1721920262862,-500.0,0.00014794,2]
[333178048,1721920262872,-500.0,0.00014794,2]
[333178049,1721920262883,-500.0,0.00014794,2]
[333178050,1721920262893,-500.0,0.00014794,2]
[333178051,1721920262905,-500.0,0.00014794,2]
[333178052,1721920262915,-500.0,0.00014794,2]
[333178053,1721920262927,-500.0,0.00014794,2]
[333178054,1721920262938,-500.0,0.00014794,2]
[333178055,1721920262949,-1741.47,0.00014794,2]
[333178056,1721920262960,-1122.7,0.00014794,2]
[333178057,1721920262970,-531.29,0.00014794,2]
[333178058,1721920262981,-2703.0,0.00014794,2]
[333178059,1721920262991,-500.0,0.00014794,2]
[333178060,1721920263000,-500.0,0.00014794,2]
[333178061,1721920263010,-500.0,0.00014794,2]
[333178062,1721920263019,-1217.11,0.00014794,2]
[333178063,1721920263030,-674.53,0.00014794,2]
[333178064,1721920263040,-500.0,0.00014794,2]
[333178065,1721920263051,-500.0,0.00014794,2]
[333178066,1721920263063,-652.44,0.00014794,2]
[333178067,1721920263073,-778.88,0.00014794,2]
[333178068,1721920263086,-899.55,0.00014794,2]
[333178069,1721920263098,-500.0,0.00014794,2]
[333178070,1721920263109,-370.12395079,0.00014794,2]
[333178071,1721920263120,-1521.3,0.00014794,2]
[333178072,1721920263132,-503.68402711,0.00014794,2]
[333178073,1721920263143,-500.0,0.00014794,2]
[333178074,1721920263154,-493.88105072,0.00014794,2]
[333178075,1721920263165,-500.0,0.00014794,2]
[333178076,1721920263176,-500.0,0.00014794,2]
[333178077,1721920263187,-500.0,0.00014794,2]
[333178078,1721920263197,-500.0,0.00014794,2]
[333178079,1721920263207,-500.0,0.00014794,2]
[333178080,1721920263217,-692.56,0.00014794,2]
[333178081,1721920263228,-500.0,0.00014794,2]
[333178082,1721920263238,-500.0,0.00014794,2]
[333178083,1721920263248,-500.0,0.00014794,2]
[333178084,1721920263259,-500.0,0.00014794,2]
[333178085,1721920263269,-500.0,0.00014794,2]
[333178086,1721920263280,-805.63,0.00014794,2]
[333178087,1721920263290,-500.0,0.00014794,2]
[333178088,1721920263300,-890.4,0.00014794,2]
[333178089,1721920263310,-500.0,0.00014794,2]
[333178090,1721920263319,-500.0,0.00014794,2]
[333178091,1721920263329,-717.27,0.00014794,2]
[333178092,1721920263339,-500.0,0.00014794,2]
[333178093,1721920263348,-1429.52,0.00014794,2]
[333178094,1721920263358,-1017.11,0.00014794,2]
[333178095,1721920263368,-1525.85,0.00014794,2]
[333178096,1721920263377,-974.91,0.00014794,2]
[333178097,1721920263387,-500.0,0.00014794,2]
[333178098,1721920263397,-500.0,0.00014794,2]
[333178099,1721920263407,-875.28,0.00014794,2]
[333178100,1721920263417,-1718.19,0.00014794,2]
[333178101,1721920263427,-500.0,0.00014794,2]
[333178102,1721920263437,-500.0,0.00014794,2]
[333178103,1721920263447,-500.0,0.00014794,2]
[333178104,1721920263457,-500.0,0.00014794,2]
[333178105,1721920263466,-786.31,0.00014794,2]
[333178106,1721920263477,-500.0,0.00014794,2]
[333178107,1721920263487,-1598.74,0.00014794,2]
[333178108,1721920263496,-500.0,0.00014794,2]
[333178109,1721920263506,-610.12,0.00014794,2]
[333178110,1721920263516,-1411.26,0.00014794,2]
[333178111,1721920263526,-699.71,0.00014794,2]
[333178112,1721920263536,-518.46527194,0.00014794,2]
[333178113,1721920263546,-997.36,0.00014794,2]
[333178114,1721920263556,-524.3,0.00014794,2]
[333178115,1721920263566,-1352.69,0.00014794,2]
[333178116,1721920263576,-500.0,0.00014794,2]
[333178117,1721920263586,-500.0,0.00014794,2]
[333178118,1721920263596,-500.0,0.00014794,2]
[333178119,1721920263605,-1085.29,0.00014794,2]
[333178120,1721920263616,-500.0,0.00014794,2]
[333178121,1721920263628,-790.2,0.00014794,2]
[333178122,1721920263637,-619.66,0.00014794,2]
[333178123,1721920263647,-500.0,0.00014794,2]
[333178124,1721920263656,-1247.25,0.00014794,2]
[333178125,1721920263669,-500.0,0.00014794,2]
[333178126,1721920263679,-707.94,0.00014794,2]
[333178127,1721920263689,-1033.09,0.00014794,2]
[333178128,1721920263700,-500.0,0.00014794,2]
[333178129,1721920263711,-500.0,0.00014794,2]
[333178130,1721920263720,-500.0,0.00014794,2]
[333178131,1721920263731,-500.0,0.00014794,2]
[333178132,1721920263741,-1293.48,0.00014794,2]
[333178133,1721920263751,-500.0,0.00014794,2]
[333178134,1721920263762,-585.33,0.00014794,2]
[333178135,1721920263772,-1889.25,0.00014794,2]
[333178136,1721920263782,-500.0,0.00014794,2]
[333178137,1721920263792,-500.0,0.00014794,2]
[333178138,1721920263802,-500.0,0.00014794,2]
[333178139,1721920263812,-1263.54,0.00014794,2]
[333178140,1721920263822,-918.52,0.00014794,2]
[333178141,1721920263832,-500.0,0.00014794,2]
[333178142,1721920263842,-1343.62,0.00014794,2]
[333178143,1721920263852,-500.0,0.00014794,2]
[333178144,1721920263862,-500.0,0.00014794,2]
[333178145,1721920263872,-500.0,0.00014794,2]
[333178146,1721920263882,-1269.99,0.00014794,2]
[333178147,1721920263892,-500.0,0.00014794,2]
[333178148,1721920263901,-1213.33,0.00014794,2]
[333178149,1721920263911,-500.0,0.00014794,2]
[333178150,1721920263921,-500.0,0.00014794,2]
[333178151,1721920263930,-289.33739864,0.00014794,2]
[333178152,1721920263940,-821.5,0.00014794,2]
[333178153,1721920263950,-586.13,0.00014794,2]
[333178154,1721920263960,-1315.07,0.00014794,2]
[333178155,1721920263971,-500.0,0.00014794,2]
[333178156,1721920263982,-1011.15,0.00014794,2]
[333178157,1721920263992,-500.0,0.00014794,2]
[333178158,1721920264001,-695.28,0.00014794,2]
[333178159,1721920264011,-1048.38,0.00014794,2]
[333178160,1721920264021,-500.0,0.00014794,2]
[333178161,1721920264031,-2684.3,0.00014794,2]
[333178162,1721920264041,-500.0,0.00014794,2]
[333178163,1721920264051,-500.0,0.00014794,2]
[333178164,1721920264061,-591.85,0.00014794,2]
[333178165,1721920264071,-929.69,0.00014794,2]
[333178166,1721920264082,-2334.27,0.00014794,2]
[333178167,1721920264092,-2060.58,0.00014794,2]
[333178168,1721920264102,-676.74,0.00014794,2]
[333178169,1721920264112,-1152.85,0.00014794,2]
[333178170,1721920264122,-2355.86,0.00014794,2]
[333178171,1721920264132,-1105.36,0.00014794,2]
[333178172,1721920264141,-500.0,0.00014794,2]
[333178173,1721920264151,-1812.44,0.00014794,2]
[333178174,1721920264161,-500.0,0.00014794,2]
[333178175,1721920264171,-500.0,0.00014794,2]
[333178176,1721920264181,-3551.43,0.00014794,2]
[333178177,1721920264191,-500.0,0.00014794,2]
[333178178,1721920264200,-500.0,0.00014794,2]
[333178179,1721920264210,-527.38,0.00014794,2]
[333178180,1721920264220,-3292.49,0.00014794,2]
[333178181,1721920264231,-953.88,0.00014794,2]
[333178182,1721920264241,-500.0,0.00014794,2]
[333178183,1721920264251,-4682.46388287,0.00014794,2]
[333178184,1721920264938,-500.0,0.00013698,2]
[333178185,1721920264948,-1430.2,0.00013698,2]
[333178186,1721920264958,-500.0,0.00013698,2]
[333178187,1721920264968,-500.0,0.00013972,2]
[333178188,1721920264979,-1430.2,0.00013972,2]
[333178189,1721920264989,-500.0,0.00014246,2]
[333178190,1721920264999,-1430.2,0.00014246,2]
[333178191,1721920265009,-500.0,0.0001452,2]
[333178192,1721920265018,-1430.2,0.0001452,2]
[333178193,1721920265028,-7226.67611713,0.00014794,2]
[333178194,1721920265037,-824.18,0.00014794,2]
[333178195,1721920265047,-523.03168127,0.00014794,2]
[333178196,1721920265056,-5038.56,0.00014794,2]
[333178197,1721920265065,-500.0,0.00014794,2]
[333178198,1721920265075,-500.0,0.00014794,2]
[333178199,1721920265085,-500.0,0.00014794,2]
[333178200,1721920265095,-2016.79,0.00014794,2]
[333178201,1721920265104,-500.0,0.00014794,2]
[333178202,1721920265113,-500.0,0.00014794,2]
[333178203,1721920265123,-2201.11,0.00014794,2]
[333178204,1721920265133,-1120.68,0.00014794,2]
[333178205,1721920265142,-884.95,0.00014794,2]
[333178206,1721920265152,-1931.27,0.00014794,2]
[333178207,1721920265162,-1928.47,0.00014794,2]
[333178208,1721920265172,-1131.0,0.00014794,2]
[333178209,1721920265182,-500.0,0.00014794,2]
[333178210,1721920265192,-500.0,0.00014794,2]
[333178211,1721920265201,-500.0,0.00014794,2]
[333178212,1721920265211,-500.0,0.00014794,2]
[333178213,1721920265221,-269.37015071,0.00014794,2]
[333178214,1721920265232,-500.0,0.00014794,2]
[333178215,1721920265241,-500.0,0.00014794,2]
[333178216,1721920265251,-500.0,0.00014794,2]
[333178217,1721920265261,-7992.54,0.00014794,2]
[333178218,1721920265270,-500.0,0.00014794,2]
[333178219,1721920265281,-500.0,0.00014794,2]
[333178220,1721920265291,-1551.57,0.00014794,2]
[333178221,1721920265300,-2096.48,0.00014794,2]
[333178222,1721920265310,-1244.75,0.00014794,2]
[333178223,1721920265320,-500.0,0.00014794,2]
[333178224,1721920265330,-500.0,0.00014794,2]
[333178225,1721920265339,-1011.6,0.00014794,2]
[333178226,1721920265349,-500.0,0.00014794,2]
[333178227,1721920265359,-500.0,0.00014794,2]
[333178228,1721920265368,-657.54,0.00014794,2]
[333178229,1721920265378,-228.60957987,0.00014794,2]
[333178230,1721920265388,-500.0,0.00014794,2]
[333178231,1721920265398,-500.0,0.00014794,2]
[333178232,1721920265408,-500.94892548,0.00014794,2]
[333178233,1721920265419,-1578.49,0.00014794,2]
[333178234,1721920265429,-500.0,0.00014794,2]
[333178235,1721920265439,-5983.51,0.00014794,2]
[333178236,1721920265448,-1570.8,0.00014794,2]
[333178237,1721920265458,-1621.43,0.00014794,2]
[333178238,1721920265468,-500.0,0.00014794,2]
[333178239,1721920265479,-500.0,0.00014794,2]
[333178240,1721920265489,-1011.04,0.00014794,2]
[333178241,1721920265498,-576.95,0.00014794,2]
[333178242,1721920265508,-3743.12,0.00014794,2]
[333178243,1721920265519,-890.48,0.00014794,2]
[333178244,1721920265529,-1832.5,0.00014794,2]
[333178245,1721920265539,-500.0,0.00014794,2]
[333178246,1721920265549,-378.58484436,0.00014794,2]
[333178247,1721920265558,-1016.49,0.00014794,2]
[333178248,1721920265568,-500.0,0.00014794,2]
[333178249,1721920265579,-500.0,0.00014794,2]
[333178250,1721920265589,-500.0,0.00014794,2]
[333178251,1721920265599,-660.96,0.00014794,2]
[333178252,1721920265609,-1969.13,0.00014794,2]
[333178253,1721920265619,-500.0,0.00014794,2]
[333178254,1721920265631,-500.0,0.00014794,2]
[333178255,1721920265642,-1118.21,0.00014794,2]
[333178256,1721920265651,-539.59,0.00014794,2]
[333178257,1721920265661,-3270.58,0.00014794,2]
[333178258,1721920265672,-1456.73,0.00014794,2]
[333178259,1721920265682,-945.86,0.00014794,2]
[333178260,1721920265692,-500.0,0.00014794,2]
[333178261,1721920265703,-500.0,0.00014794,2]
[333178262,1721920265713,-500.0,0.00014794,2]
[333178263,1721920265724,-500.0,0.00014794,2]
[333178264,1721920265736,-1121.94,0.00014794,2]
[333178265,1721920265746,-1485.77,0.00014794,2]
[333178266,1721920265756,-500.0,0.00014794,2]
[333178267,1721920265765,-500.0,0.00014794,2]
[333178268,1721920265775,-500.0,0.00014794,2]
[333178269,1721920265785,-1430.2,0.00014794,2]
[333178270,1721920265795,-288.01273513,0.00015,2]
[333178271,1721920265806,-2190.92889052,0.00015,2]
[333178272,1721920265817,-185.6749049,0.00015,2]
[333178273,1721920265827,-2004.37574568,0.00015,2]
[333178274,1721920265836,-5460.9896017,0.00015,2]
[333178275,1721920265846,-222.15315473,0.00015,2]
[333178276,1721920265856,-212.10168323,0.00015,2]
[333178277,1721920265867,-1006.69332593,0.00015,2]
[333178278,1721920265877,-2427.17759688,0.00015,2]
[333178279,1721920265887,-15002.81874507,0.00015,2]
[333178280,1721920265897,-12002.25499591,0.00015,2]
[333178281,1721920265908,-10878.24044923,0.00015,2]
[333178282,1721920265918,-302.60665372,0.00015,2]
[333178283,1721920265928,-302.60665372,0.00015,2]
[333178284,1721920265938,-302.60665372,0.00015,2]
[333178285,1721920265947,-302.60665374,0.00015,2]
[333178286,1721920265957,-500.0,0.00015068,2]
[333178287,1721920265967,-500.0,0.00015068,2]
[333178288,1721920265977,-1093.76,0.00015068,2]
[333178289,1721920265990,-500.0,0.00015068,2]
[333178290,1721920265999,-673.76,0.00015068,2]
[333178291,1721920266009,-500.0,0.00015068,2]
[333178292,1721920266018,-500.0,0.00015068,2]
[333178293,1721920266027,-661.23,0.00015068,2]
[333178294,1721920266037,-500.0,0.00015068,2]
[333178295,1721920266046,-500.0,0.00015068,2]
[333178296,1721920266055,-333.58264193,0.00015068,2]
[333178297,1721920266065,-500.0,0.00015068,2]
[333178298,1721920266075,-500.0,0.00015068,2]
[333178299,1721920266084,-510.82,0.00015068,2]
[333178300,1721920266093,-500.0,0.00015068,2]
[333178301,1721920266103,-500.0,0.00015068,2]
[333178302,1721920266113,-500.0,0.00015068,2]
[333178303,1721920266122,-500.0,0.00015068,2]
[333178304,1721920266132,-500.0,0.00015068,2]
[333178305,1721920266142,-500.0,0.00015068,2]
[333178306,1721920266151,-500.0,0.00015068,2]
[333178307,1721920266161,-500.0,0.00015068,2]
[333178308,1721920266170,-500.0,0.00015068,2]
[333178309,1721920266179,-196.77357668,0.00015068,2]
[333178310,1721920266190,-500.0,0.00015068,2]
[333178311,1721920266200,-500.0,0.00015068,2]
[333178312,1721920266209,-500.0,0.00015068,2]
[333178313,1721920266219,-500.0,0.00015068,2]
[333178314,1721920266229,-500.0,0.00015068,2]
[333178315,1721920266240,-500.0,0.00015068,2]
[333178316,1721920266250,-500.0,0.00015068,2]
[333178317,1721920266260,-500.0,0.00015068,2]
[333178318,1721920266270,-500.0,0.00015068,2]
[333178319,1721920266280,-500.0,0.00015068,2]
[333178320,1721920266290,-500.0,0.00015068,2]
[333178321,1721920266300,-500.0,0.00015068,2]
[333178322,1721920266309,-516.87,0.00015068,2]
[333178323,1721920266319,-500.0,0.00015068,2]
[333178324,1721920266328,-500.0,0.00015068,2]
[333178325,1721920266340,-500.0,0.00015068,2]
[333178326,1721920266350,-626.08,0.00015068,2]
[333178327,1721920266362,-1266.26,0.00015068,2]
[333178328,1721920266373,-500.0,0.00015068,2]
[333178329,1721920266384,-500.0,0.00015068,2]
[333178330,1721920266394,-500.0,0.00015068,2]
[333178331,1721920266405,-500.0,0.00015068,2]
[333178332,1721920266416,-613.41,0.00015068,2]
[333178333,1721920266427,-500.0,0.00015068,2]
[333178334,1721920266439,-776.74,0.00015068,2]
[333178335,1721920266450,-500.0,0.00015068,2]
[333178336,1721920266461,-500.0,0.00015068,2]
[333178337,1721920266474,-1564.04,0.00015068,2]